bitfinex/quotes_SOLUSD_20240622
["timestamp","ask_amount","ask_price","bid_price","bid_amount"]
[1719057175028,0.8791624,134.69,134.68,7.425]
[1719057175236,0.8791624,134.69,134.68,13.935]
[1719057175734,0.8791624,134.69,134.68,7.425]
[1719057175906,0.8791624,134.69,134.68,13.935]
[1719057179415,0.8791624,134.69,134.68,14.275]
[1719057179912,0.8791624,134.69,134.68,7.765]
[1719057180126,0.8791624,134.69,134.68,14.275]
[1719057180642,0.8791624,134.69,134.68,14.105]
[1719057180826,0.8791624,134.69,134.68,13.935]
[1719057186018,0.8791624,134.69,134.68,14.275]
[1719057187523,0.8791624,134.69,134.68,0.17]
[1719057187725,0.8791624,134.69,134.68,7.425]
[1719057188042,0.8791624,134.69,134.68,13.935]
[1719057188848,0.8791624,134.69,134.68,14.105]
[1719057189213,0.8791624,134.69,134.68,14.275]
[1719057189437,0.8791624,134.69,134.68,7.765]
[1719057189718,0.8791624,134.69,134.68,14.275]
[1719057189913,0.8791624,134.69,134.68,7.765]
[1719057190118,0.8791624,134.69,134.68,7.425]
[1719057190337,0.8791624,134.69,134.68,13.935]
[1719057191022,0.8791624,134.69,134.68,7.425]
[1719057191223,0.8791624,134.69,134.68,13.935]
[1719057192149,0.8791624,134.69,134.68,7.425]
[1719057192743,0.8791624,134.69,134.68,13.935]
[1719057193037,0.8791624,134.69,134.68,7.425]
[1719057193260,0.8791624,134.69,134.67,7.4253]
[1719057193628,0.8791624,134.69,134.68,7.425]
[1719057194044,0.8791624,134.69,134.67,7.4254]
[1719057194421,0.8791624,134.69,134.68,7.425]
[1719057202127,0.8791624,134.69,134.68,13.935]
[1719057202522,0.8791624,134.69,134.68,14.275]
[1719057205051,0.8791624,134.69,134.68,34.275]
[1719057214370,6.24e-05,134.69,134.68,40.785]
[1719057214545,29.4209624,134.83,134.77,7.42]
[1719057214546,12.1867,134.8,134.77,7.42]
[1719057214747,7.4174,134.82,134.74,35.1082]
[1719057214748,6.458,134.82,134.74,35.1082]
[1719057214973,6.458,134.82,134.79,13.9287]
[1719057215164,6.458,134.82,134.79,6.51]
[1719057215369,6.458,134.82,134.79,13.9289]
[1719057215883,6.458,134.82,134.79,7.4189]
[1719057216675,6.458,134.82,134.77,7.4199]
[1719057216997,6.458,134.82,134.77,13.9299]
[1719057217796,6.458,134.82,134.78,7.4194]
[1719057217958,6.458,134.82,134.78,13.9294]
[1719057219274,6.458,134.82,134.79,7.4189]
[1719057220064,6.458,134.82,134.79,7.4187]
[1719057221061,7.3891624,134.83,134.79,7.4187]
[1719057221484,0.8791624,134.83,134.79,7.4187]
[1719057221659,20.8791624,134.83,134.79,7.4187]
[1719057221859,28.2959624,134.83,134.78,13.9292]
[1719057222067,28.2959624,134.83,134.77,7.4199]
[1719057222068,7.4173,134.82,134.77,7.4199]
[1719057222271,7.4173,134.82,134.77,13.9299]
[1719057222518,13.9273,134.82,134.77,13.9299]
[1719057222794,34.8059624,134.83,134.78,7.4193]
[1719057222981,34.8059624,134.83,134.78,13.9293]
[1719057224674,34.8059624,134.83,134.78,6.51]
[1719057225397,7.4173,134.82,134.77,7.4198]
[1719057225702,7.4173,134.82,134.77,13.9298]
[1719057225909,7.4173,134.82,134.77,7.4198]
[1719057226220,20.8791624,134.83,134.78,7.4189]
[1719057226401,20.8791624,134.83,134.79,7.4188]
[1719057226571,27.3891624,134.83,134.79,7.4188]
[1719057226771,34.8059624,134.83,134.78,13.9293]
[1719057228703,28.2959624,134.83,134.78,13.9293]
[1719057230506,288.6959624,134.83,134.78,13.9293]
[1719057233109,288.6959624,134.83,134.78,7.4193]
[1719057233493,288.6959624,134.83,134.78,13.9293]
[1719057235410,28.2959624,134.83,134.78,13.9293]
[1719057237720,20.8791624,134.83,134.79,7.4186]
[1719057237920,0.8791624,134.83,134.79,7.4186]
[1719057238502,0.8791624,134.83,134.79,13.9286]
[1719057241829,0.8791624,134.83,134.81,7.4176]
[1719057242810,0.8791624,134.83,134.8,14.0981]
[1719057243630,0.8791624,134.83,134.81,7.4178]
[1719057244421,0.8791624,134.83,134.8,14.0982]
[1719057245248,0.8791624,134.83,134.8,7.5882]
[1719057245420,7.3891624,134.83,134.76,18.5512]
[1719057245747,7.3891624,134.83,134.78,13.9291]
[1719057245748,14.8058624,134.83,134.78,13.9291]
[1719057246248,7.3891624,134.83,134.79,7.4188]
[1719057246847,0.8791624,134.83,134.8,7.4183]
[1719057249136,0.8791624,134.83,134.79,6.51]
[1719057249137,0.8791624,134.83,134.79,6.68]
[1719057249333,0.8791624,134.83,134.79,7.4189]
[1719057250016,0.8791624,134.83,134.81,6.51]
[1719057250720,0.8791624,134.83,134.81,13.9275]
[1719057251241,0.8791624,134.83,134.81,6.51]
[1719057251544,0.8791624,134.83,134.8,13.9281]
[1719057252050,0.8791624,134.83,134.8,7.4183]
[1719057252218,0.8791624,134.83,134.79,6.51]
[1719057252420,0.8791624,134.83,134.8,7.4182]
[1719057255058,0.8791624,134.83,134.79,13.9288]
[1719057256857,0.8791624,134.83,134.79,7.4188]
[1719057257062,0.8791624,134.83,134.74,35.1083]
[1719057257063,6.51,134.82,134.74,35.1083]
[1719057257254,6.51,134.82,134.78,7.4194]
[1719057257561,8.2962624,134.83,134.78,7.4189]
[1719057257766,6.51,134.82,134.78,7.4189]
[1719057257969,0.8791624,134.83,134.79,6.51]
[1719057258150,0.8791624,134.83,134.8,6.51]
[1719057258740,0.8791624,134.83,134.81,7.4177]
[1719057261285,0.8791624,134.83,134.8,13.9282]
[1719057264555,0.8791624,134.83,134.8,6.51]
[1719057266566,0.8791624,134.83,134.8,13.9283]
[1719057266877,0.8791624,134.83,134.8,7.4183]
[1719057269992,0.8791624,134.83,134.79,6.51]
[1719057270188,0.8791624,134.83,134.81,7.4175]
[1719057271396,0.8791624,134.83,134.8,13.9281]
[1719057275302,0.8791624,134.83,134.8,7.4181]
[1719057276195,0.8791624,134.83,134.82,6.51]
[1719057276398,0.8791624,134.83,134.82,6.85]
[1719057276573,0.8791624,134.83,134.82,14.2672]
[1719057277502,0.8791624,134.83,134.82,7.7572]
[1719057277680,0.8791624,134.83,134.82,14.2672]
[1719057278870,0.8791624,134.83,134.82,32.8104]
[1719057279480,0.8791624,134.83,134.82,39.3204]
[1719057279987,0.8791624,134.83,134.82,32.8104]
[1719057281372,0.8791624,134.83,134.82,39.3204]
[1719057281578,0.8791624,134.83,134.82,32.8104]
[1719057282091,0.8791624,134.83,134.82,14.2672]
[1719057283898,0.8791624,134.83,134.82,14.0972]
[1719057284097,0.8791624,134.83,134.82,13.9272]
[1719057284303,0.8791624,134.83,134.79,15.9935]
[1719057284473,0.8791624,134.83,134.81,6.51]
[1719057284902,0.8791624,134.83,134.82,7.4172]
[1719057285508,0.8791624,134.83,134.76,18.5514]
[1719057285802,0.8791624,134.83,134.79,7.4184]
[1719057286105,6.51,134.82,134.76,18.5514]
[1719057286312,6.51,134.82,134.77,6.51]
[1719057286696,6.51,134.82,134.76,18.5514]
[1719057287011,0.8791624,134.83,134.77,6.51]
[1719057287179,7.3891624,134.83,134.78,6.51]
[1719057287380,7.3891624,134.83,134.8,7.4183]
[1719057287711,7.3891624,134.83,134.78,6.51]
[1719057287712,7.3891624,134.83,134.79,7.4187]
[1719057288006,0.8791624,134.83,134.79,7.4187]
[1719057288701,7.3891624,134.83,134.79,7.4187]
[1719057289194,7.3891624,134.83,134.78,13.9292]
[1719057290106,7.3891624,134.83,134.78,7.4192]
[1719057292017,7.3891624,134.83,134.79,7.4187]
[1719057292511,0.8791624,134.83,134.8,7.4182]
[1719057292891,0.3791624,134.83,134.8,7.4182]
[1719057293693,0.3791624,134.83,134.79,7.4187]
[1719057294594,6.8891624,134.83,134.79,7.4187]
[1719057294795,0.3791624,134.83,134.73,18.5543]
[1719057295002,13.9284,134.8,134.75,6.51]
[1719057295195,13.9284,134.8,134.75,7.4209]
[1719057295796,6.51,134.8,134.76,7.4205]
[1719057296814,13.9285,134.8,134.75,7.421]
[1719057297117,6.51,134.8,134.76,7.4205]
[1719057297715,6.51,134.8,134.75,13.9309]
[1719057298510,19.6047,134.81,134.76,7.4204]
[1719057298690,26.1147,134.81,134.76,7.4204]
[1719057299106,26.1147,134.81,134.75,13.9309]
[1719057299516,13.9284,134.8,134.74,7.7615]
[1719057299814,6.51,134.79,134.75,7.4211]
[1719057300034,6.51,134.8,134.75,13.9311]
[1719057300390,6.51,134.8,134.76,7.4205]
[1719057300589,6.51,134.8,134.75,13.9309]
[1719057300843,13.9283,134.8,134.75,13.931]
[1719057302101,13.9283,134.8,134.75,7.421]
[1719057302302,13.9283,134.8,134.75,13.931]
[1719057302723,13.9283,134.8,134.75,6.51]
[1719057302896,13.9283,134.8,134.74,7.7616]
[1719057303095,6.51,134.79,134.74,14.2716]
[1719057303495,6.51,134.79,134.75,7.4209]
[1719057304315,7.4184,134.8,134.75,13.9309]
[1719057304316,13.9284,134.8,134.75,13.9309]
[1719057304721,13.9284,134.8,134.75,6.51]
[1719057306322,6.51,134.8,134.75,6.51]
[1719057306627,13.9291,134.79,134.74,14.2716]
[1719057307426,6.51,134.79,134.74,14.2716]
[1719057308420,13.9289,134.79,134.74,7.7616]
[1719057308624,6.51,134.77,134.72,7.4224]
[1719057308844,6.51,134.77,134.72,13.9324]
[1719057309016,7.4197,134.78,134.73,7.4222]
[1719057309325,6.51,134.77,134.74,7.4215]
[1719057309517,6.51,134.78,134.74,7.4215]
[1719057310328,6.51,134.78,134.73,13.9321]
[1719057311927,13.9296,134.78,134.73,7.4221]
[1719057312117,6.51,134.77,134.72,7.4225]
[1719057312306,6.51,134.77,134.72,13.9325]
[1719057313127,7.4206,134.76,134.71,7.7631]
[1719057313319,6.51,134.74,134.69,6.51]
[1719057313524,6.51,134.74,134.69,13.9341]
[1719057313704,6.51,134.74,134.7,7.4237]
[1719057315332,6.51,134.74,134.69,7.4242]
[1719057315509,6.51,134.74,134.69,13.9342]
[1719057315711,7.4214,134.75,134.7,7.4238]
[1719057315910,6.51,134.74,134.7,7.4238]
[1719057316110,6.51,134.75,134.7,7.4238]
[1719057316520,6.51,134.75,134.71,7.4232]
[1719057316728,6.51,134.75,134.71,7.4231]
[1719057317842,6.51,134.74,134.7,7.4237]
[1719057318028,6.51,134.74,134.69,13.9343]
[1719057318337,6.51,134.74,134.7,7.4238]
[1719057318634,6.51,134.75,134.7,13.9338]
[1719057318836,13.9311,134.75,134.7,13.9338]
[1719057319623,13.9311,134.75,134.7,7.4238]
[1719057319819,13.9311,134.75,134.69,13.9342]
[1719057320223,6.51,134.74,134.69,13.9342]
[1719057320624,6.51,134.74,134.69,7.4242]
[1719057322621,6.51,134.74,134.7,7.4238]
[1719057323041,13.9311,134.75,134.7,7.4238]
[1719057323241,6.51,134.75,134.7,7.4238]
[1719057324337,6.51,134.75,134.71,7.4233]
[1719057325533,6.51,134.75,134.7,13.9336]
[1719057327149,6.51,134.75,134.7,7.4236]
[1719057327359,13.9312,134.75,134.7,13.9336]
[1719057328038,13.9312,134.75,134.7,7.4236]
[1719057328236,13.9312,134.75,134.7,13.9336]
[1719057328539,13.9312,134.75,134.69,7.4243]
[1719057328754,13.9312,134.75,134.69,13.9343]
[1719057329847,13.9312,134.75,134.69,7.4243]
[1719057330039,13.9312,134.75,134.69,13.9343]
[1719057330239,13.9312,134.75,134.7,7.4237]
[1719057330634,13.9317,134.74,134.69,7.4242]
[1719057330842,7.4222,134.73,134.65,15.7779]
[1719057331044,6.51,134.74,134.68,7.4246]
[1719057331045,13.932,134.74,134.68,7.4246]
[1719057331238,6.51,134.73,134.68,7.4246]
[1719057331541,6.51,134.73,134.69,7.4243]
[1719057331738,7.4229,134.72,134.67,7.4255]
[1719057332041,13.9325,134.73,134.68,13.9349]
[1719057332945,6.51,134.73,134.68,13.9349]
[1719057333463,6.51,134.73,134.69,7.4242]
[1719057334248,13.9322,134.73,134.68,13.9349]
[1719057334560,13.9322,134.73,134.65,34.3432]
[1719057334561,6.51,134.73,134.67,6.51]
[1719057334736,6.51,134.74,134.69,7.424]
[1719057335158,6.51,134.74,134.69,13.934]
[1719057336255,13.9317,134.74,134.69,13.934]
[1719057336460,13.9317,134.74,134.69,7.424]
[1719057341368,6.51,134.73,134.68,7.4247]
[1719057346066,13.9322,134.73,134.65,34.3444]
[1719057346259,6.51,134.73,134.68,13.9349]
[1719057347174,6.51,134.73,134.68,7.4249]
[1719057347355,6.51,134.73,134.68,13.9349]
[1719057347762,6.51,134.73,134.69,7.4242]
[1719057348153,13.9318,134.74,134.69,7.4242]
[1719057353572,13.9318,134.74,134.68,13.9347]
[1719057356286,6.51,134.73,134.68,7.4247]
[1719057358989,6.51,134.73,134.69,7.4244]
[1719057360490,18.6967,134.73,134.69,7.4244]
[1719057360694,6.51,134.71,134.66,7.4259]
[1719057360878,6.51,134.69,134.65,18.56563586]
[1719057361191,6.51,134.69,134.65,7.4264]
[1719057363085,6.51,134.68,134.65,7.4264]
[1719057363491,6.51,134.67,134.65,7.4264]
[1719057364278,6.51,134.67,134.62,25.0795]
[1719057364279,6.51,134.67,134.64,7.4271]
[1719057364488,6.51,134.67,134.6,17.67724258]
[1719057364669,6.51,134.67,134.63,7.4273]
[1719057365301,6.51,134.67,134.64,7.4271]
[1719057367015,6.51,134.67,134.63,7.4277]
[1719057367217,6.51,134.66,134.63,7.4277]
[1719057368791,6.51,134.66,134.61,25.0819]
[1719057368792,6.51,134.66,134.62,7.4281]
[1719057369414,6.51,134.66,134.63,7.4277]
[1719057370915,13.9361,134.66,134.61,7.4285]
[1719057371213,6.51,134.65,134.6,13.9391]
[1719057371595,6.51,134.65,134.6,7.4291]
[1719057372211,6.51,134.65,134.61,7.4288]
[1719057372391,7.4261,134.66,134.61,7.4288]
[1719057372600,6.51,134.65,134.61,7.4288]
[1719057372807,6.51,134.66,134.61,13.9388]
[1719057373015,13.9361,134.66,134.61,13.9388]
[1719057375314,13.9361,134.66,134.61,7.4288]
[1719057375496,13.9361,134.66,134.6,13.9392]
[1719057375897,6.51,134.66,134.6,6.51]
[1719057376118,7.427,134.65,134.6,6.51]
[1719057376328,7.4276,134.64,134.6,6.51]
[1719057376505,7.4267,134.65,134.6,6.51]
[1719057376906,7.4267,134.65,134.6,13.9393]
[1719057377325,6.0696,134.67,134.61,0.17]
[1719057377524,12.5796,134.67,134.58,18.576]
[1719057377727,12.5796,134.67,134.61,6.51]
[1719057377934,20.0053,134.67,134.61,13.9385]
[1719057381232,12.5796,134.67,134.63,7.4276]
[1719057381425,12.1867,134.69,134.64,6.51]
[1719057381610,19.6114,134.69,134.64,13.9369]
[1719057381806,19.6114,134.69,134.64,6.51]
[1719057382026,19.6114,134.69,134.63,7.4275]
[1719057382216,19.6114,134.69,134.64,6.51]
[1719057382801,19.6114,134.69,134.64,13.9371]
[1719057384304,19.6114,134.69,134.64,6.51]
[1719057384808,19.6114,134.69,134.64,13.9369]
[1719057387234,12.1867,134.69,134.64,13.9369]
[1719057388137,12.1867,134.69,134.65,7.4265]
[1719057389032,6.321,134.7,134.65,7.4265]
[1719057389233,13.9338,134.71,134.65,13.9365]
[1719057390025,7.4238,134.71,134.66,13.9359]
[1719057390346,13.9338,134.71,134.66,13.9359]
[1719057392336,13.9338,134.71,134.66,6.51]
[1719057394942,7.4238,134.71,134.66,6.51]
[1719057395337,13.9338,134.71,134.66,6.51]
[1719057397348,7.4239,134.7,134.66,6.51]
[1719057397851,13.9335,134.71,134.66,6.51]
[1719057398149,7.4239,134.7,134.66,6.51]
[1719057399147,13.9339,134.7,134.65,6.51]
[1719057399450,6.51,134.69,134.64,6.51]
[1719057400029,13.9346,134.69,134.64,6.51]
[1719057401250,13.9346,134.69,134.64,13.9372]
[1719057401841,7.4246,134.69,134.64,13.9372]
[1719057403057,13.9341,134.7,134.64,13.9372]
[1719057404467,13.9341,134.7,134.65,7.4266]
[1719057406144,30.7449,134.72,134.67,7.4254]
[1719057406145,6.51,134.71,134.67,7.4254]
[1719057406359,26.1198,134.72,134.67,7.4254]
[1719057406559,20.0,134.71,134.67,7.4254]
[1719057407570,20.0,134.71,134.66,13.9359]
[1719057407868,6.51,134.72,134.66,28.2565]
[1719057408059,26.1512,134.77,134.7,6.51]
[1719057408060,18.7062,134.77,134.7,6.51]
[1719057408251,6.51,134.76,134.7,6.51]
[1719057408452,13.9308,134.76,134.7,13.9337]
[1719057408974,7.4212,134.75,134.7,13.9337]
[1719057409147,13.9312,134.75,134.7,6.51]
[1719057409342,13.9318,134.74,134.68,13.9349]
[1719057409550,7.4222,134.73,134.68,13.9349]
[1719057410255,6.51,134.73,134.68,13.9349]
[1719057411080,13.9324,134.73,134.68,13.9349]
[1719057411272,6.51,134.72,134.67,14.2755]
[1719057411463,6.51,134.71,134.66,7.4259]
[1719057411856,13.9334,134.71,134.66,7.4259]
[1719057412960,6.51,134.71,134.66,7.4259]
[1719057413175,6.51,134.7,134.66,7.4259]
[1719057414557,19.6096,134.72,134.67,7.4254]
[1719057414963,6.51,134.71,134.67,7.4254]
[1719057415149,26.1196,134.72,134.67,7.4254]
[1719057417549,26.1196,134.72,134.66,13.9359]
[1719057418356,26.1196,134.72,134.66,6.51]
[1719057418586,26.1196,134.72,134.67,13.9354]
[1719057418587,13.9329,134.72,134.67,13.9354]
[1719057420184,13.9329,134.72,134.67,6.51]
[1719057420486,7.4234,134.71,134.66,13.936]
[1719057420679,7.4234,134.71,134.67,0.34]
[1719057422088,7.4234,134.71,134.67,6.85]
[1719057423866,13.9329,134.72,134.67,6.85]
[1719057424088,13.9329,134.72,134.67,14.2754]
[1719057424484,6.51,134.72,134.67,14.2754]
[1719057424682,13.9324,134.73,134.67,14.2754]
[1719057424987,7.4228,134.72,134.67,6.85]
[1719057425186,13.9328,134.72,134.67,6.85]
[1719057425587,7.4228,134.72,134.67,6.85]
[1719057426091,7.4228,134.72,134.67,14.2755]
[1719057436082,7.4234,134.71,134.67,0.17]
[1719057436282,7.4234,134.71,134.66,13.9359]
[1719057438078,7.4234,134.71,134.66,6.51]
[1719057438488,13.9334,134.71,134.66,6.51]
[1719057439001,13.9334,134.71,134.66,13.9361]
[1719057439377,13.933,134.72,134.66,13.9361]
[1719057439574,13.933,134.72,134.67,7.4254]
[1719057439778,13.9323,134.73,134.68,7.425]
[1719057442610,13.9323,134.73,134.67,13.9353]
[1719057442811,7.4229,134.72,134.67,13.9353]
[1719057443218,6.174,134.76,134.68,6.51]
[1719057443419,7.4218,134.74,134.69,7.4244]
[1719057443595,7.4218,134.74,134.7,6.51]
[1719057444718,7.4218,134.74,134.69,13.9344]
[1719057446016,27.4212,134.75,134.7,7.4238]
[1719057446192,33.9312,134.75,134.7,7.4238]
[1719057446818,33.9312,134.75,134.69,13.9343]
[1719057447198,7.4217,134.74,134.69,13.9343]
[1719057448010,20.0,134.75,134.7,7.4237]
[1719057448203,6.51,134.76,134.7,13.9337]
[1719057448404,7.4214,134.75,134.7,13.9337]
[1719057448619,7.4214,134.75,134.71,6.51]
[1719057449721,7.4214,134.75,134.7,13.9337]
[1719057449919,7.4207,134.76,134.71,7.4233]
[1719057450127,13.9307,134.76,134.71,7.4233]
[1719057450326,20.0,134.77,134.7,13.9336]
[1719057450327,13.9314,134.75,134.7,13.9336]
[1719057450822,7.4217,134.74,134.7,6.51]
[1719057451025,13.9325,134.73,134.68,13.9347]
[1719057451215,13.9325,134.73,134.67,15.9482]
[1719057451216,13.9325,134.73,134.67,29.8835]
[1719057452106,20.0,134.77,134.67,29.8835]
[1719057452107,7.4213,134.75,134.69,7.424]
[1719057452313,6.51,134.74,134.69,7.424]
[1719057452528,6.51,134.74,134.69,13.934]
[1719057455327,13.9317,134.74,134.69,13.934]
[1719057456330,7.4222,134.73,134.68,7.5948]
[1719057456511,13.9322,134.73,134.68,13.9348]
[1719057457107,13.9322,134.73,134.68,7.4248]
[1719057462428,7.4229,134.72,134.67,29.8835]
[1719057462615,7.4234,134.71,134.67,15.9482]
[1719057462820,18.5541,134.75,134.67,23.3732]
[1719057462821,7.4224,134.73,134.67,23.3732]
[1719057463022,20.0,134.72,134.7,7.4237]
[1719057463218,18.5516,134.76,134.68,13.9348]
[1719057463417,7.4223,134.73,134.68,13.9348]
[1719057464031,7.4223,134.73,134.68,6.51]
[1719057464224,13.9323,134.73,134.68,6.51]
[1719057464727,13.9323,134.73,134.68,13.935]
[1719057465344,13.9323,134.73,134.68,7.425]
[1719057466143,13.9323,134.73,134.67,29.8835]
[1719057468623,6.51,134.72,134.67,15.9482]
[1719057468844,6.51,134.71,134.67,15.9482]
[1719057469744,13.9335,134.71,134.67,15.9482]
[1719057469938,6.51,134.71,134.67,15.9482]
[1719057472922,6.51,134.71,134.67,23.3735]
[1719057473551,18.5556,134.74,134.66,6.3868]
[1719057473760,6.51,134.7,134.64,22.2528]
[1719057474546,6.51,134.7,134.65,7.4262]
[1719057474547,13.934,134.7,134.65,7.4262]
[1719057475955,6.51,134.69,134.65,7.4262]
[1719057480588,6.51,134.67,134.64,15.7428]
[1719057481374,13.9355,134.67,134.64,15.7428]
[1719057481908,6.51,134.67,134.64,23.1697]
[1719057482111,6.51,134.68,134.64,23.1697]
[1719057482316,20.0,134.67,134.64,23.1697]
[1719057482992,20.0,134.67,134.64,15.7428]
[1719057483600,20.0,134.68,134.64,15.7428]
[1719057484014,20.0,134.68,134.64,23.1698]
[1719057485415,20.0,134.68,134.64,15.7428]
[1719057486598,7.4246,134.69,134.64,29.6799]
[1719057487309,7.4246,134.69,134.64,22.2528]
[1719057487919,7.425,134.68,134.64,22.2528]
[1719057490412,7.4256,134.67,134.64,22.2528]
[1719057490589,7.4256,134.67,134.64,15.7428]
[1719057491517,7.4261,134.66,134.64,15.7428]
[1719057492104,13.9361,134.66,134.64,15.7428]
[1719057492845,13.9357,134.67,134.64,15.7428]
[1719057492997,13.9352,134.68,134.64,15.7428]
[1719057493195,20.0,134.67,134.64,15.7428]
[1719057495213,7.4252,134.68,134.64,15.7428]
[1719057495713,18.5585,134.71,134.64,15.7428]
[1719057495714,13.9338,134.71,134.66,6.51]
[1719057496099,13.9338,134.71,134.66,13.936]
[1719057496706,13.9338,134.71,134.66,6.51]
[1719057497226,7.4245,134.69,134.64,23.1699]
[1719057497407,7.4245,134.69,134.65,6.51]
[1719057497606,7.4245,134.69,134.64,22.2528]
[1719057497823,7.425,134.68,134.64,15.7428]
[1719057498124,7.4246,134.69,134.64,22.2528]
[1719057498598,7.4246,134.69,134.64,15.7428]
[1719057498803,7.4246,134.69,134.64,23.1699]
[1719057499610,13.9341,134.7,134.64,23.1699]
[1719057500120,7.4246,134.69,134.64,23.1699]
[1719057501698,7.4246,134.69,134.64,15.7428]
[1719057502209,7.4246,134.69,134.64,22.2528]
[1719057502729,7.4246,134.69,134.64,15.7428]
[1719057503022,7.4246,134.69,134.64,29.6799]
[1719057506707,7.4246,134.69,134.65,6.51]
[1719057507517,7.4246,134.69,134.64,29.6799]
[1719057509814,7.4246,134.69,134.64,23.1699]
[1719057510023,7.4246,134.69,134.64,29.6799]
[1719057516311,6.51,134.7,134.65,7.4266]
[1719057516312,13.9341,134.7,134.65,7.4266]
[1719057516530,6.51,134.69,134.65,7.4266]
[1719057522746,13.9341,134.7,134.65,7.4266]
[1719057524642,6.51,134.7,134.66,7.426]
[1719057525739,13.9339,134.7,134.65,7.4264]
[1719057525920,6.51,134.7,134.66,7.4259]
[1719057526114,13.9334,134.71,134.66,7.4259]
[1719057528255,7.4239,134.7,134.65,13.9364]
[1719057531349,6.51,134.7,134.64,22.2528]
[1719057531553,7.4251,134.68,134.64,15.7428]
[1719057531852,7.4251,134.68,134.64,23.1699]
[1719057533536,13.9346,134.69,134.64,23.1699]
[1719057534553,6.51,134.69,134.64,15.7428]
[1719057535446,6.51,134.68,134.64,15.7428]
[1719057535652,6.51,134.66,134.64,15.7428]
[1719057535966,13.9361,134.66,134.62,6.6082]
[1719057536134,6.51,134.65,134.62,6.6082]
[1719057539142,6.51,134.66,134.62,14.0364]
[1719057541040,7.4261,134.66,134.62,6.6082]
[1719057541443,13.9357,134.67,134.62,14.0364]
[1719057541658,20.0,134.66,134.62,14.0364]
[1719057542148,27.4261,134.66,134.62,6.6082]
[1719057542853,26.51,134.66,134.62,6.6082]
[1719057543051,7.4268,134.65,134.62,6.6082]
[1719057543851,33.9363,134.66,134.62,6.6082]
[1719057546965,20.0,134.66,134.62,20.5464]
[1719057547260,20.0,134.66,134.62,13.1182]
[1719057547261,27.4261,134.66,134.62,13.1182]
[1719057547663,27.4261,134.66,134.62,20.5465]
[1719057547873,20.0,134.66,134.62,20.5465]
[1719057548373,27.4262,134.66,134.62,13.1182]
[1719057549938,27.4262,134.66,134.62,6.6082]
[1719057550672,19.26966615,134.72,134.63,0.17]
[1719057550971,19.26966615,134.72,134.64,13.9371]
[1719057550972,13.9348,134.69,134.64,13.9371]
[1719057551261,7.4261,134.66,134.65,16.5197]
[1719057551775,7.4257,134.67,134.65,16.5197]
[1719057552167,7.4252,134.68,134.65,16.5197]
[1719057552342,13.9352,134.68,134.65,16.5197]
[1719057552658,7.4252,134.68,134.65,16.5197]
[1719057556780,6.51,134.69,134.65,16.5197]
[1719057557069,38.5585,134.71,134.66,13.9359]
[1719057557070,33.9333,134.71,134.66,13.9359]
[1719057557280,26.51,134.71,134.66,6.51]
[1719057557576,26.51,134.71,134.66,12.6879]
[1719057557874,33.9336,134.71,134.66,20.1136]
[1719057558664,27.4236,134.71,134.66,20.1136]
[1719057558875,13.9336,134.71,134.66,20.1136]
[1719057559568,7.4236,134.71,134.66,20.1136]